[Event "11th LCC Rapid 2019"]
[Site "London"]
[Date "2019.12.07"]
[Round "3.17"]
[White "Mitra, Roman C"]
[Black "Jain, Gautam"]
[Result "1-0"]
[WhiteElo "2132"]
[BlackElo "1900"]
[PlyCount "79"]
[EventDate "2019.12.08"]
[EventType "swiss"]
[EventCountry "ENG"]
[TimeControl "15+10"]
[WhiteClock "0:04:45"]
[BlackClock "0:09:24"]

1. c4 {[%emt 0:00:00]} f5 {[%emt 0:00:00]} 2. g3 {[%emt 0:00:00]} Nf6 {[%emt 0:00:00]} 3. Bg2 {[%emt 0:00:00]} d6 {[%emt 0:00:00]} 4. Nc3 {[%emt 0:00:00]} e5 {[%emt 0:00:00]} 5. d3 {[%emt 0:00:00]} g6 {[%emt 0:00:00]} 6. Nf3 {[%emt 0:00:00]} Bg7 {[%emt 0:00:00]} 7. O-O {[%emt 0:00:00]} O-O {[%emt 0:00:00]} 8. Rb1 {[%emt 0:00:00]} c6 {[%emt 0:00:00]} 9. b4 {[%emt 0:00:00]} Nbd7 {[%emt 0:00:00]} 10. a4 {[%emt 0:00:00]} d5 {[%emt 0:00:00]} 11. cxd5 {[%emt 0:00:00]} cxd5 {[%emt 0:00:00]} 12. Qb3 {[%emt 0:00:00]} Kh8 {[%emt 0:00:00]} 13. Nxd5 {[%emt 0:00:00]} e4 {[%emt 0:00:00]} 14. dxe4 {[%emt 0:00:00]} fxe4 {[%emt 0:00:00]} 15. Ng5 {[%emt 0:00:00]} Ne5 {[%emt 0:00:00]} 16. Nxf6 {[%emt 0:00:00]} Qxf6 {[%emt 0:00:00]} 17. Nxe4 {[%emt 0:00:00]} Qb6 {[%emt 0:00:00]} 18. Be3 {[%emt 0:00:00]} Qa6 {[%emt 0:00:00]} 19. b5 {[%emt 0:00:00]} Qa5 {[%emt 0:00:00]} 20. f4 {[%emt 0:00:00]} Ng4 {[%emt 0:00:00]} 21. Bc5 {[%emt 0:00:00]} Re8 {[%emt 0:00:00]} 22. Nd6 {[%emt 0:00:00]} Be6 {[%emt 0:00:00]} 23. Qa3 {[%emt 0:00:00]} Rf8 {[%emt 0:00:00]} 24. Nxb7 {[%emt 0:00:00]} Qd2 {[%emt 0:00:00]} 25. Bxf8 {[%emt 0:00:00]} Rxf8 {[%emt 0:00:00]} 26. Rbd1 {[%emt 0:00:00]} Qxe2 {[%emt 0:00:00]} 27. Qd3 {[%emt 0:00:00]} Qa2 {[%emt 0:00:00]} 28. Rd2 {[%emt 0:00:00]} Qxa4 {[%emt 0:00:00]} 29. Nc5 {[%emt 0:00:00]} Qc4 {[%emt 0:00:16]} 30. Nxe6 {[%emt 0:00:00]} Qxe6 {[%emt 0:00:02]} 31. h3 {[%emt 0:00:00]} Nf6 {[%emt 0:00:10]} 32. Kh2 {[%emt 0:00:00]} Rb8 {[%emt 0:00:27]} 33. Rc1 {[%emt 0:00:00]} Qb6 {[%emt 0:00:06]} 34. Rc6 {[%emt 0:00:00]} Qa5 {[%emt 0:00:14]} 35. Ra6 {[%emt 0:00:00]} Qc7 {[%emt 0:00:11]} 36. Bc6 {[%emt 0:00:00]} h5 {[%emt 0:00:19]} 37. Qxg6 {[%emt 0:00:00]} Rd8 {[%emt 0:00:09]} 38. Rxd8+ {[%emt 0:00:00]} Qxd8 {[%emt 0:00:01]} 39. Rxa7 {[%emt 0:00:00]} Qd2+ {[%emt 0:00:05]} 40. Bg2 {[%emt 0:00:00]} 1-0

[Event "11th LCC Rapid 2019"]
[Site "London"]
[Date "2019.12.07"]
[Round "3.18"]
[White "Rahman, Asad"]
[Black "Watson, Mikey J"]
[Result "1-0"]
[WhiteElo "2200"]
[BlackElo "1973"]
[PlyCount "103"]
[EventDate "2019.12.08"]
[EventType "swiss"]
[EventCountry "ENG"]
[TimeControl "15+10"]
[WhiteClock "0:01:41"]
[BlackClock "0:04:24"]

1. e4 {[%emt 0:00:00]} c6 {[%emt 0:00:00]} 2. d4 {[%emt 0:00:00]} d5 {[%emt 0:00:00]} 3. Nc3 {[%emt 0:00:00]} dxe4 {[%emt 0:00:00]} 4. Nxe4 {[%emt 0:00:00]} Nf6 {[%emt 0:00:00]} 5. Ng3 {[%emt 0:00:00]} g6 {[%emt 0:00:00]} 6. Nf3 {[%emt 0:00:00]} Bg7 {[%emt 0:00:00]} 7. h3 {[%emt 0:00:00]} O-O {[%emt 0:00:00]} 8. Bc4 {[%emt 0:00:00]} Nbd7 {[%emt 0:00:00]} 9. O-O {[%emt 0:00:00]} b5 {[%emt 0:00:00]} 10. Bd3 {[%emt 0:00:00]} Nd5 {[%emt 0:00:00]} 11. a4 {[%emt 0:00:00]} Qb6 {[%emt 0:00:00]} 12. c3 {[%emt 0:00:00]} a6 {[%emt 0:00:00]} 13. axb5 {[%emt 0:00:00]} cxb5 {[%emt 0:00:00]} 14. Re1 {[%emt 0:00:00]} Bb7 {[%emt 0:00:00]} 15. Bg5 {[%emt 0:00:00]} Rfe8 {[%emt 0:00:00]} 16. Qd2 {[%emt 0:00:00]} e5 {[%emt 0:00:00]} 17. dxe5 {[%emt 0:00:00]} Nxe5 {[%emt 0:00:00]} 18. Nxe5 {[%emt 0:00:00]} Bxe5 {[%emt 0:00:00]} 19. Be3 {[%emt 0:00:00]} Nxe3 {[%emt 0:00:15]} 20. Qxe3 {[%emt 0:00:00]} Qxe3 {[%emt 0:00:00]} 21. Rxe3 {[%emt 0:00:00]} Bxg3 {[%emt 0:00:00]} 22. Rxg3 {[%emt 0:00:00]} Rad8 {[%emt 0:00:00]} 23. c4 {[%emt 0:00:00]} Re5 {[%emt 0:00:00]} 24. cxb5 {[%emt 0:00:00]} axb5 {[%emt 0:00:00]} 25. Ra5 {[%emt 0:00:00]} Bc6 {[%emt 0:00:00]} 26. Ra6 {[%emt 0:00:00]} Be4 {[%emt 0:00:00]} 27. f4 {[%emt 0:00:00]} Re7 {[%emt 0:00:00]} 28. Bxe4 {[%emt 0:00:07]} Rxe4 {[%emt 0:00:00]} 29. f5 {[%emt 0:00:01]} Re2 {[%emt 0:00:00]} 30. b3 {[%emt 0:00:23]} Kf8 {[%emt 0:00:32]} 31. Rb6 {[%emt 0:00:53]} Re5 {[%emt 0:00:47]} 32. fxg6 {[%emt 0:00:04]} hxg6 {[%emt 0:00:04]} 33. Rf3 {[%emt 0:00:06]} Rd7 {[%emt 0:00:47]} 34. Rxg6 {[%emt 0:00:08]} Ke7 {[%emt 0:00:13]} 35. Rgf6 {[%emt 0:00:27]} Ke8 {[%emt 0:00:09]} 36. Kh2 {[%emt 0:00:36]} Re2 {[%emt 0:00:10]} 37. R6f5 {[%emt 0:00:07]} b4 {[%emt 0:00:46]} 38. R5f4 {[%emt 0:00:07]} Rb7 {[%emt 0:00:02]} 39. h4 {[%emt 0:00:03]} Re5 {[%emt 0:00:35]} 40. Kh3 {[%emt 0:00:08]} Kf8 {[%emt 0:00:13]} 41. Rg4 {[%emt 0:00:01]} Ke7 {[%emt 0:00:17]} 42. g3 {[%emt 0:00:03]} Ke6 {[%emt 0:00:09]} 43. Rff4 {[%emt 0:00:15]} f5 {[%emt 0:00:24]} 44. Rg6+ {[%emt 0:00:16]} Kf7 {[%emt 0:00:04]} 45. h5 {[%emt 0:00:02]} Rb8 {[%emt 0:00:19]} 46. Kh4 {[%emt 0:00:03]} Ke7 {[%emt 0:00:11]} 47. h6 {[%emt 0:00:09]} Rh8 {[%emt 0:00:09]} 48. Kg5 {[%emt 0:00:01]} Re3 {[%emt 0:00:05]} 49. Kxf5 {[%emt 0:00:13]} Rf8+ {[%emt 0:00:12]} 50. Kg4 {[%emt 0:00:01]} Rxb3 {[%emt 0:00:39]} 51. Rxf8 {[%emt 0:00:16]} Kxf8 {[%emt 0:00:02]} 52. h7 {[%emt 0:00:01]} 1-0

[Event "11th LCC Rapid 2019"]
[Site "London"]
[Date "2019.12.07"]
[Round "3.19"]
[White "Leslie, Alex"]
[Black "Karumazondo, Ragarirai Ernest"]
[Result "1-0"]
[WhiteElo "1875"]
[BlackElo "1900"]
[PlyCount "49"]
[EventDate "2019.12.08"]
[EventType "swiss"]
[EventCountry "ENG"]
[TimeControl "15+10"]
[WhiteClock "0:05:27"]
[BlackClock "0:09:17"]

1. d4 {[%emt 0:00:00]} Nf6 {[%emt 0:00:00]} 2. c4 {[%emt 0:00:00]} e5 {[%emt 0:00:00]} 3. dxe5 {[%emt 0:00:00]} Ng4 {[%emt 0:00:00]} 4. Nf3 {[%emt 0:00:00]} Bc5 {[%emt 0:00:00]} 5. e3 {[%emt 0:00:00]} Nc6 {[%emt 0:00:00]} 6. Be2 {[%emt 0:00:00]} O-O {[%emt 0:00:00]} 7. O-O {[%emt 0:00:00]} Ngxe5 {[%emt 0:00:00]} 8. Bd2 {[%emt 0:00:00]} a5 {[%emt 0:00:00]} 9. Bc3 {[%emt 0:00:00]} Re8 {[%emt 0:00:00]} 10. Nbd2 {[%emt 0:00:00]} Nxf3+ {[%emt 0:00:00]} 11. Nxf3 {[%emt 0:00:00]} d6 {[%emt 0:00:00]} 12. Nd4 {[%emt 0:00:00]} Bd7 {[%emt 0:00:00]} 13. Bf3 {[%emt 0:00:00]} Qh4 {[%emt 0:00:00]} 14. Nxc6 {[%emt 0:00:00]} bxc6 {[%emt 0:00:00]} 15. Qd3 {[%emt 0:00:00]} Re6 {[%emt 0:00:00]} 16. g3 {[%emt 0:00:00]} Qh3 {[%emt 0:00:00]} 17. Bg2 {[%emt 0:00:00]} Qh5 {[%emt 0:00:00]} 18. Qd1 {[%emt 0:00:00]} Qg5 {[%emt 0:00:00]} 19. h4 {[%emt 0:00:00]} Qg6 {[%emt 0:00:00]} 20. Bd4 {[%emt 0:00:00]} Bxd4 {[%emt 0:00:00]} 21. Qxd4 {[%emt 0:00:00]} c5 {[%emt 0:00:00]} 22. Qd2 {[%emt 0:00:00]} Qf6 {[%emt 0:00:00]} 23. Bxa8 {[%emt 0:00:00]} c6 {[%emt 0:00:00]} 24. Qxa5 {[%emt 0:00:00]} h5 {[%emt 0:00:00]} 25. Qc7 {[%emt 0:03:34]} 1-0

[Event "11th LCC Rapid 2019"]
[Site "London"]
[Date "2019.12.07"]
[Round "3.20"]
[White "Royal, Shreyas"]
[Black "Rushbrooke, Tibo"]
[Result "1-0"]
[WhiteElo "1941"]
[BlackElo "1730"]
[PlyCount "81"]
[EventDate "2019.12.08"]
[EventType "swiss"]
[EventCountry "ENG"]
[TimeControl "15+10"]
[WhiteClock "0:00:39"]
[BlackClock "0:04:09"]

1. d4 {[%emt 0:00:00]} Nf6 {[%emt 0:00:00]} 2. c4 {[%emt 0:00:00]} g6 {[%emt 0:00:00]} 3. Nc3 {[%emt 0:00:00]} d5 {[%emt 0:00:00]} 4. cxd5 {[%emt 0:00:00]} Nxd5 {[%emt 0:00:00]} 5. e4 {[%emt 0:00:00]} Nxc3 {[%emt 0:00:00]} 6. bxc3 {[%emt 0:00:00]} Bg7 {[%emt 0:00:00]} 7. Bc4 {[%emt 0:00:00]} c5 {[%emt 0:00:00]} 8. Be3 {[%emt 0:00:00]} Nc6 {[%emt 0:00:00]} 9. Ne2 {[%emt 0:00:00]} O-O {[%emt 0:00:00]} 10. O-O {[%emt 0:00:00]} Na5 {[%emt 0:00:00]} 11. Bd3 {[%emt 0:00:00]} b6 {[%emt 0:00:00]} 12. f3 {[%emt 0:00:00]} e5 {[%emt 0:00:00]} 13. dxc5 {[%emt 0:00:00]} Be6 {[%emt 0:00:00]} 14. cxb6 {[%emt 0:00:00]} axb6 {[%emt 0:00:00]} 15. Qc2 {[%emt 0:00:00]} Nc4 {[%emt 0:00:00]} 16. Bxc4 {[%emt 0:00:00]} Bxc4 {[%emt 0:00:00]} 17. Rfd1 {[%emt 0:00:00]} Qc7 {[%emt 0:00:00]} 18. a4 {[%emt 0:00:00]} Rfd8 {[%emt 0:00:00]} 19. Rxd8+ {[%emt 0:00:00]} Rxd8 {[%emt 0:00:00]} 20. Rd1 {[%emt 0:00:00]} Bf8 {[%emt 0:00:00]} 21. Nc1 {[%emt 0:00:00]} Be6 {[%emt 0:00:00]} 22. Nd3 {[%emt 0:00:00]} Rc8 {[%emt 0:00:35]} 23. Qb2 {[%emt 0:00:00]} Qxc3 {[%emt 0:02:39]} 24. Qxc3 {[%emt 0:00:30]} Rxc3 {[%emt 0:00:01]} 25. Bxb6 {[%emt 0:00:02]} Bb3 {[%emt 0:00:56]} 26. Rd2 {[%emt 0:00:23]} Bh6 {[%emt 0:00:02]} 27. f4 {[%emt 0:00:06]} exf4 {[%emt 0:00:01]} 28. Bd4 {[%emt 0:00:22]} Rc4 {[%emt 0:00:12]} 29. Nb2 {[%emt 0:00:01]} Rc1+ {[%emt 0:00:24]} 30. Kf2 {[%emt 0:00:06]} f3 {[%emt 0:00:03]} 31. Be3 {[%emt 0:00:16]} Bxe3+ {[%emt 0:00:05]} 32. Kxe3 {[%emt 0:00:02]} Rc3+ {[%emt 0:00:11]} 33. Kd4 {[%emt 0:00:18]} fxg2 {[%emt 0:00:09]} 34. Rxg2 {[%emt 0:00:02]} Rc2 {[%emt 0:00:04]} 35. Rxc2 {[%emt 0:00:05]} Bxc2 {[%emt 0:00:07]} 36. a5 {[%emt 0:00:06]} f5 {[%emt 0:00:26]} 37. exf5 {[%emt 0:00:05]} gxf5 {[%emt 0:00:01]} 38. a6 {[%emt 0:00:22]} Kf7 {[%emt 0:00:04]} 39. Nd3 {[%emt 0:00:06]} Ba4 {[%emt 0:00:15]} 40. a7 {[%emt 0:00:03]} Bc6 {[%emt 0:00:01]} 41. Ne5+ {[%emt 0:00:01]} 1-0

[Event "11th LCC Rapid 2019"]
[Site "London"]
[Date "2019.12.07"]
[Round "3.21"]
[White "Ignatovic, Ernest"]
[Black "Ortiz Sanchez, Luis"]
[Result "1/2-1/2"]
[WhiteElo "1703"]
[BlackElo "1947"]
[PlyCount "147"]
[EventDate "2019.12.08"]
[EventType "swiss"]
[EventCountry "ENG"]
[TimeControl "15+10"]
[WhiteClock "0:03:31"]
[BlackClock "0:00:55"]

1. b3 {[%emt 0:00:00]} e5 {[%emt 0:00:00]} 2. Bb2 {[%emt 0:00:00]} Nc6 {[%emt 0:00:00]} 3. e3 {[%emt 0:00:00]} Nf6 {[%emt 0:00:00]} 4. Bb5 {[%emt 0:00:00]} Bd6 {[%emt 0:00:00]} 5. Ne2 {[%emt 0:00:00]} O-O {[%emt 0:00:00]} 6. O-O {[%emt 0:00:00]} a6 {[%emt 0:00:00]} 7. Bxc6 {[%emt 0:00:00]} dxc6 {[%emt 0:00:00]} 8. d3 {[%emt 0:00:00]} Re8 {[%emt 0:00:00]} 9. e4 {[%emt 0:00:00]} a5 {[%emt 0:00:00]} 10. a4 {[%emt 0:00:00]} Nh5 {[%emt 0:00:00]} 11. Nd2 {[%emt 0:00:00]} Qg5 {[%emt 0:00:00]} 12. Nc4 {[%emt 0:00:00]} Bg4 {[%emt 0:00:00]} 13. Ne3 {[%emt 0:00:00]} Nf4 {[%emt 0:00:00]} 14. Nxg4 {[%emt 0:00:00]} Qxg4 {[%emt 0:00:00]} 15. Nxf4 {[%emt 0:00:00]} Qxf4 {[%emt 0:00:00]} 16. g3 {[%emt 0:00:00]} Qh6 {[%emt 0:00:00]} 17. Bc1 {[%emt 0:00:00]} Qh3 {[%emt 0:00:00]} 18. f4 {[%emt 0:00:00]} Bc5+ {[%emt 0:00:00]} 19. Kh1 {[%emt 0:00:00]} Bd4 {[%emt 0:00:00]} 20. Rb1 {[%emt 0:00:00]} Rad8 {[%emt 0:00:00]} 21. Qf3 {[%emt 0:00:13]} Rd7 {[%emt 0:00:00]} 22. fxe5 {[%emt 0:00:43]} Rxe5 {[%emt 0:00:00]} 23. Bb2 {[%emt 0:00:39]} Bxb2 {[%emt 0:00:00]} 24. Rxb2 {[%emt 0:00:01]} Re6 {[%emt 0:00:00]} 25. Rbb1 {[%emt 0:00:07]} c5 {[%emt 0:00:00]} 26. Rf2 {[%emt 0:00:30]} b6 {[%emt 0:00:00]} 27. Qe3 {[%emt 0:00:11]} Qh5 {[%emt 0:00:30]} 28. Rbf1 {[%emt 0:00:03]} Qg6 {[%emt 0:00:44]} 29. Qd2 {[%emt 0:00:21]} h6 {[%emt 0:00:37]} 30. Qc3 {[%emt 0:00:09]} Rde7 {[%emt 0:00:12]} 31. Qc4 {[%emt 0:00:03]} Kh7 {[%emt 0:01:00]} 32. Kg2 {[%emt 0:00:05]} Rd7 {[%emt 0:00:07]} 33. Rf5 {[%emt 0:00:05]} Rde7 {[%emt 0:00:49]} 34. Rd5 {[%emt 0:00:11]} Qg4 {[%emt 0:00:00]} 35. Rf2 {[%emt 0:00:23]} h5 {[%emt 0:00:07]} 36. Rdf5 {[%emt 0:00:24]} f6 {[%emt 0:00:35]} 37. Qd5 {[%emt 0:00:07]} Re5 {[%emt 0:00:15]} 38. Rxe5 {[%emt 0:00:32]} Rxe5 {[%emt 0:00:01]} 39. Qf7 {[%emt 0:00:04]} h4 {[%emt 0:00:14]} 40. Qxc7 {[%emt 0:00:55]} h3+ {[%emt 0:00:10]} 41. Kg1 {[%emt 0:00:24]} Qd1+ {[%emt 0:00:01]} 42. Rf1 {[%emt 0:00:01]} Qxc2 {[%emt 0:00:01]} 43. Rf2 {[%emt 0:00:16]} Qxd3 {[%emt 0:00:01]} 44. Qc8 {[%emt 0:00:20]} Qb1+ {[%emt 0:00:05]} 45. Rf1 {[%emt 0:00:03]} Qxe4 {[%emt 0:00:15]} 46. Qxh3+ {[%emt 0:00:03]} Kg8 {[%emt 0:00:01]} 47. Qc8+ {[%emt 0:00:04]} Re8 {[%emt 0:00:00]} 48. Qc7 {[%emt 0:00:07]} Qe3+ {[%emt 0:00:06]} 49. Kg2 {[%emt 0:00:12]} Qxb3 {[%emt 0:00:02]} 50. Qd7 {[%emt 0:00:25]} Re2+ {[%emt 0:00:37]} 51. Kh3 {[%emt 0:00:03]} Qe6+ {[%emt 0:00:01]} 52. Qxe6+ {[%emt 0:00:04]} Rxe6 {[%emt 0:00:01]} 53. Rb1 {[%emt 0:00:08]} Kf7 {[%emt 0:00:01]} 54. Kg4 {[%emt 0:00:02]} g6 {[%emt 0:00:06]} 55. Kf4 {[%emt 0:00:02]} Ke7 {[%emt 0:00:01]} 56. g4 {[%emt 0:00:06]} Kd6 {[%emt 0:00:03]} 57. h4 {[%emt 0:00:03]} Kc6 {[%emt 0:00:04]} 58. h5 {[%emt 0:00:03]} gxh5 {[%emt 0:00:11]} 59. gxh5 {[%emt 0:00:02]} c4 {[%emt 0:00:15]} 60. h6 {[%emt 0:00:24]} Kc5 {[%emt 0:00:18]} 61. Kf5 {[%emt 0:00:06]} Re2 {[%emt 0:00:12]} 62. Kxf6 {[%emt 0:00:12]} c3 {[%emt 0:00:00]} 63. h7 {[%emt 0:01:03]} Rh2 {[%emt 0:00:04]} 64. Kg7 {[%emt 0:00:10]} c2 {[%emt 0:00:30]} 65. Rc1 {[%emt 0:00:31]} Kb4 {[%emt 0:00:01]} 66. h8=Q {[%emt 0:00:10]} Rxh8 {[%emt 0:00:02]} 67. Kxh8 {[%emt 0:00:02]} Kxa4 {[%emt 0:00:01]} 68. Rxc2 {[%emt 0:00:06]} Kb3 {[%emt 0:00:05]} 69. Rh2 {[%emt 0:00:18]} a4 {[%emt 0:00:04]} 70. Rh3+ {[%emt 0:00:08]} Kc2 {[%emt 0:00:11]} 71. Rh2+ {[%emt 0:00:13]} Kc3 {[%emt 0:00:08]} 72. Rh3+ {[%emt 0:00:01]} Kc2 {[%emt 0:00:04]} 73. Rh2+ {[%emt 0:00:01]} Kc3 {[%emt 0:00:01]} 74. Rh3+ {[%emt 0:00:01]} 1/2-1/2

[Event "11th LCC Rapid 2019"]
[Site "London"]
[Date "2019.12.07"]
[Round "3.22"]
[White "Thatte, Nishchal"]
[Black "Jezierski, Colum"]
[Result "1-0"]
[WhiteElo "1723"]
[BlackElo "1908"]
[PlyCount "75"]
[EventDate "2019.12.08"]
[EventType "swiss"]
[EventCountry "ENG"]
[TimeControl "15+10"]
[WhiteClock "0:06:04"]
[BlackClock "0:11:49"]

1. e4 {[%emt 0:00:00]} g6 {[%emt 0:00:00]} 2. d4 {[%emt 0:00:00]} Bg7 {[%emt 0:00:00]} 3. Nc3 {[%emt 0:00:00]} c5 {[%emt 0:00:00]} 4. dxc5 {[%emt 0:00:00]} Nc6 {[%emt 0:00:00]} 5. Be3 {[%emt 0:00:00]} Qa5 {[%emt 0:00:00]} 6. Qd2 {[%emt 0:00:00]} Nf6 {[%emt 0:00:00]} 7. Nf3 {[%emt 0:00:00]} Ng4 {[%emt 0:00:00]} 8. h3 {[%emt 0:00:00]} Nxe3 {[%emt 0:00:00]} 9. Qxe3 {[%emt 0:00:00]} Nb4 {[%emt 0:00:00]} 10. Bd3 {[%emt 0:00:00]} Nxd3+ {[%emt 0:00:00]} 11. cxd3 {[%emt 0:00:00]} Bxc3+ {[%emt 0:00:00]} 12. bxc3 {[%emt 0:00:00]} Qxc3+ {[%emt 0:00:00]} 13. Ke2 {[%emt 0:00:00]} b6 {[%emt 0:00:00]} 14. Rhc1 {[%emt 0:00:00]} Qb2+ {[%emt 0:00:00]} 15. Kf1 {[%emt 0:00:00]} bxc5 {[%emt 0:00:00]} 16. Qxc5 {[%emt 0:00:00]} O-O {[%emt 0:00:00]} 17. Rcb1 {[%emt 0:00:00]} Qf6 {[%emt 0:00:00]} 18. Kg1 {[%emt 0:00:00]} d6 {[%emt 0:00:00]} 19. Qc6 {[%emt 0:00:00]} Bxh3 {[%emt 0:00:00]} 20. e5 {[%emt 0:00:00]} dxe5 {[%emt 0:00:00]} 21. Qxf6 {[%emt 0:00:00]} exf6 {[%emt 0:00:00]} 22. gxh3 {[%emt 0:00:00]} Rfd8 {[%emt 0:00:00]} 23. Rd1 {[%emt 0:00:00]} Rac8 {[%emt 0:00:00]} 24. d4 {[%emt 0:00:00]} e4 {[%emt 0:00:00]} 25. Nh2 {[%emt 0:00:32]} Rd5 {[%emt 0:00:00]} 26. Ng4 {[%emt 0:00:00]} Rg5 {[%emt 0:00:00]} 27. Kf1 {[%emt 0:00:00]} f5 {[%emt 0:00:00]} 28. Nf6+ {[%emt 0:00:00]} Kg7 {[%emt 0:00:00]} 29. h4 {[%emt 0:00:00]} Kxf6 {[%emt 0:00:00]} 30. hxg5+ {[%emt 0:00:00]} Kxg5 {[%emt 0:00:00]} 31. d5 {[%emt 0:00:00]} h5 {[%emt 0:00:00]} 32. d6 {[%emt 0:00:00]} Kf6 {[%emt 0:00:09]} 33. d7 {[%emt 0:00:00]} Rd8 {[%emt 0:00:00]} 34. Rac1 {[%emt 0:00:00]} h4 {[%emt 0:00:07]} 35. Rc8 {[%emt 0:00:00]} Ke7 {[%emt 0:00:03]} 36. Rxd8 {[%emt 0:00:00]} Kxd8 {[%emt 0:00:01]} 37. Kg2 {[%emt 0:00:00]} g5 {[%emt 0:00:01]} 38. Rd5 {[%emt 0:00:00]} 1-0

[Event "11th LCC Rapid 2019"]
[Site "London"]
[Date "2019.12.07"]
[Round "3.23"]
[White "Kerr, Duncan"]
[Black "Phillips, David A"]
[Result "1-0"]
[WhiteElo "1902"]
[BlackElo "2055"]
[PlyCount "61"]
[EventDate "2019.12.08"]
[EventType "swiss"]
[EventCountry "ENG"]
[TimeControl "15+10"]
[WhiteClock "0:00:31"]
[BlackClock "0:02:15"]

1. e4 {[%emt 0:00:00]} b6 {[%emt 0:00:00]} 2. d4 {[%emt 0:00:00]} Bb7 {[%emt 0:00:00]} 3. Nc3 {[%emt 0:00:00]} e6 {[%emt 0:00:00]} 4. Bd3 {[%emt 0:00:00]} Nf6 {[%emt 0:00:00]} 5. f3 {[%emt 0:00:00]} d5 {[%emt 0:00:00]} 6. e5 {[%emt 0:00:00]} Nfd7 {[%emt 0:00:00]} 7. Nce2 {[%emt 0:00:00]} c5 {[%emt 0:00:00]} 8. c3 {[%emt 0:00:00]} Nc6 {[%emt 0:00:00]} 9. Be3 {[%emt 0:00:00]} Be7 {[%emt 0:00:00]} 10. Nh3 {[%emt 0:00:00]} a5 {[%emt 0:00:00]} 11. a3 {[%emt 0:00:00]} Ba6 {[%emt 0:00:00]} 12. Bc2 {[%emt 0:00:00]} Rc8 {[%emt 0:00:00]} 13. O-O {[%emt 0:00:00]} Qc7 {[%emt 0:00:00]} 14. Rc1 {[%emt 0:00:00]} Qb8 {[%emt 0:00:00]} 15. f4 {[%emt 0:00:00]} g6 {[%emt 0:00:00]} 16. Rf3 {[%emt 0:00:00]} c4 {[%emt 0:00:00]} 17. Nf2 {[%emt 0:00:00]} Bd8 {[%emt 0:00:00]} 18. g4 {[%emt 0:00:00]} h5 {[%emt 0:00:00]} 19. Rh3 {[%emt 0:00:00]} Rg8 {[%emt 0:00:00]} 20. gxh5 {[%emt 0:00:00]} gxh5+ {[%emt 0:00:00]} 21. Kh1 {[%emt 0:00:00]} h4 {[%emt 0:00:00]} 22. f5 {[%emt 0:00:00]} Nf8 {[%emt 0:00:00]} 23. Nf4 {[%emt 0:00:08]} Ne7 {[%emt 0:02:27]} 24. fxe6 {[%emt 0:00:17]} fxe6 {[%emt 0:00:01]} 25. Qh5+ {[%emt 0:00:29]} Kd7 {[%emt 0:00:02]} 26. Rxh4 {[%emt 0:00:19]} Qb7 {[%emt 0:01:13]} 27. Qf7 {[%emt 0:00:39]} Qc6 {[%emt 0:00:23]} 28. Rg1 {[%emt 0:00:28]} Rxg1+ {[%emt 0:00:15]} 29. Kxg1 {[%emt 0:00:00]} Bc7 {[%emt 0:00:17]} 30. Rh8 {[%emt 0:00:20]} Qa8 {[%emt 0:00:06]} 31. Ng4 {[%emt 0:00:30]} 1-0

[Event "11th LCC Rapid 2019"]
[Site "London"]
[Date "2019.12.07"]
[Round "3.25"]
[White "Sandhu, Manvith"]
[Black "Kuzhelev, Timur"]
[Result "0-1"]
[WhiteElo "1673"]
[BlackElo "1745"]
[PlyCount "95"]
[EventDate "2019.12.08"]
[EventType "swiss"]
[EventCountry "ENG"]
[TimeControl "15+10"]
[WhiteClock "0:09:16"]

1. e4 {[%emt 0:00:00]} e5 {[%emt 0:00:00]} 2. Nf3 {[%emt 0:00:00]} d5 {[%emt 0:00:00]} 3. exd5 {[%emt 0:00:00]} e4 {[%emt 0:00:00]} 4. Ng1 {[%emt 0:00:00]} Qxd5 {[%emt 0:00:00]} 5. Nc3 {[%emt 0:00:00]} Qe6 {[%emt 0:00:00]} 6. Nge2 {[%emt 0:00:00]} Bc5 {[%emt 0:00:00]} 7. Ng3 {[%emt 0:00:00]} f5 {[%emt 0:00:00]} 8. Qe2 {[%emt 0:00:00]} Nf6 {[%emt 0:00:00]} 9. d3 {[%emt 0:00:00]} exd3 {[%emt 0:00:00]} 10. Qxe6+ {[%emt 0:00:00]} Bxe6 {[%emt 0:00:00]} 11. Bxd3 {[%emt 0:00:00]} g6 {[%emt 0:00:00]} 12. Bf4 {[%emt 0:00:00]} Bb6 {[%emt 0:00:00]} 13. O-O {[%emt 0:00:00]} Nc6 {[%emt 0:00:00]} 14. Rfe1 {[%emt 0:00:00]} Kf7 {[%emt 0:00:00]} 15. a3 {[%emt 0:00:00]} Rad8 {[%emt 0:00:00]} 16. Na4 {[%emt 0:00:00]} h6 {[%emt 0:00:00]} 17. Nxb6 {[%emt 0:00:00]} cxb6 {[%emt 0:00:00]} 18. Be5 {[%emt 0:00:00]} Nxe5 {[%emt 0:00:00]} 19. Rxe5 {[%emt 0:00:00]} Nd7 {[%emt 0:00:00]} 20. Ree1 {[%emt 0:00:00]} Nc5 {[%emt 0:00:00]} 21. Be2 {[%emt 0:00:00]} Rd2 {[%emt 0:00:00]} 22. b4 {[%emt 0:00:00]} Nd7 {[%emt 0:00:00]} 23. Bd3 {[%emt 0:00:00]} Rc8 {[%emt 0:00:00]} 24. Nf1 {[%emt 0:00:00]} Rdxc2 {[%emt 0:00:00]} 25. Bxc2 {[%emt 0:00:00]} Rxc2 {[%emt 0:00:00]} 26. Rac1 {[%emt 0:00:00]} Ra2 {[%emt 0:00:00]} 27. Rc3 {[%emt 0:00:00]} f4 {[%emt 0:00:00]} 28. g3 {[%emt 0:00:00]} g5 {[%emt 0:00:00]} 29. gxf4 {[%emt 0:00:00]} gxf4 {[%emt 0:00:00]} 30. Rf3 {[%emt 0:00:00]} Nf6 {[%emt 0:00:57]} 31. Rc1 {[%emt 0:00:00]} Nd5 {[%emt 0:00:00]} 32. Rd3 {[%emt 0:00:00]} Kf6 {[%emt 0:00:00]} 33. Nd2 {[%emt 0:00:00]} Kf5 {[%emt 0:00:00]} 34. Nb1 {[%emt 0:00:16]} Nf6 {[%emt 0:00:00]} 35. Nc3 {[%emt 0:01:13]} Rxa3 {[%emt 0:00:00]} 36. Rcd1 {[%emt 0:00:36]} Bc4 {[%emt 0:00:00]} 37. Rh3 {[%emt 0:01:26]} h5 {[%emt 0:00:00]} 38. Rc1 {[%emt 0:01:06]} b5 {[%emt 0:00:00]} 39. Kg2 {[%emt 0:00:59]} a5 {[%emt 0:00:00]} 40. bxa5 {[%emt 0:00:55]} b4 {[%emt 0:00:00]} 41. Ne4 {[%emt 0:00:17]} Bd5 {[%emt 0:00:00]} 42. Rxa3 {[%emt 0:00:09]} bxa3 {[%emt 0:00:00]} 43. f3 {[%emt 0:00:03]} Nxe4 {[%emt 0:00:00]} 44. fxe4+ {[%emt 0:00:14]} Kxe4 {[%emt 0:00:00]} 45. Kf2 {[%emt 0:00:18]} a2 {[%emt 0:00:00]} 46. Ke2 {[%emt 0:00:08]} f3+ {[%emt 0:00:00]} 47. Kd2 {[%emt 0:00:07]} Kf4 {[%emt 0:00:00]} 48. Kd3 {[%emt 0:00:28]} 0-1